[Event "NOR-ch Various 2019"]
[Site "Larvik"]
[Date "2019.07.12"]
[Round "8.2"]
[White "Thrana, Svein Arne"]
[Black "Stake-Larsen, Gunnar"]
[Result "1/2-1/2"]
[ECO "D02"]
[WhiteElo "1800"]
[BlackElo "1976"]
[Annotator "NA"]
[PlyCount "75"]
[EventDate "2019.07.06"]
[EventType "swiss"]
[EventCountry "NOR"]
[SourceTitle "playchess.com"]
[Source "ChessBase"]
[SourceQuality "1"]
[TimeControl "40/5400+30:1800+30"]

1. Nf3 {[%emt 0:00:00]} d5 {[%emt 0:01:28]} 2. d4 {[%emt 0:06:11]} c6 {[%emt 0:00:36]} 3. c3 {[%emt 0:00:57]} Nf6 {[%emt 0:01:06]} 4. g3 {[%emt 0:00:43]} e6 {[%emt 0:05:29]} 5. Bg2 {[%emt 0:00:43]} Nbd7 {[%emt 0:00:18]} 6. Nbd2 {[%emt 0:01:10]} Bd6 {[%emt 0:04:33]} 7. Qc2 {[%emt 0:03:11]} e5 {[%emt 0:06:07]} 8. dxe5 {[%emt 0:03:04]} Nxe5 {[%emt 0:00:17]} 9. Nxe5 {[%emt 0:00:17]} Bxe5 {[%emt 0:00:03]} 10. Nf3 {[%emt 0:00:15]} Bc7 {[%emt 0:00:44]} 11. Bg5 {[%emt 0:03:14]} O-O {[%emt 0:01:05]} 12. O-O {[%emt 0:01:42]} Re8 {[%emt 0:02:16]} 13. e3 {[%emt 0:04:20]} h6 {[%emt 0:03:19]} 14. Bxf6 {[%emt 0:09:40]} Qxf6 {[%emt 0:00:15]} 15. Nd4 {[%emt 0:01:38]} Bb6 {[%emt 0:04:59]} 16. b4 {[%emt 0:03:05]} Bg4 {[%emt 0:08:17]} 17. a4 {[%emt 0:01:34]} Rad8 {[%emt 0:02:05]} 18. a5 {[%emt 0:00:26]} Bxd4 {[%emt 0:02:08]} 19. cxd4 {[%emt 0:00:31]} a6 {[%emt 0:00:12]} 20. f3 {[%emt 0:04:27]} Bf5 {[%emt 0:01:59]} 21. Qd2 {[%emt 0:00:07]} Qg6 {[%emt 0:01:15]} 22. Rfe1 {[%emt 0:03:51]} h5 {[%emt 0:01:18]} 23. Ra3 {[%emt 0:02:07]} Re7 {[%emt 0:01:35]} 24. Rc3 {[%emt 0:00:55]} Rde8 {[%emt 0:02:21]} 25. Kf2 {[%emt 0:04:41]} Qd6 {[%emt 0:01:00]} 26. Rc5 {[%emt 0:00:27]} Bg6 {[%emt 0:00:40]} 27. h4 {[%emt 0:01:38]} Bf5 {[%emt 0:01:52]} 28. Bf1 {[%emt 0:05:27]} Qg6 {[%emt 0:02:51]} 29. Bg2 {[%emt 0:00:23]} Qd6 {[%emt 0:04:15]} 30. Bf1 {[%emt 0:01:58]} Re6 {[%emt 0:01:21]} 31. Bd3 {[%emt 0:03:28]} Bxd3 {[%emt 0:00:41]} 32. Qxd3 {[%emt 0:00:02]} Rg6 {[%emt 0:00:55]} 33. f4 {[%emt 0:00:28]} Rge6 {[%emt 0:00:46]} 34. Qe2 {[%emt 0:02:25]} Qe7 {[%emt 0:04:41]} 35. Qd2 {[%emt 0:01:15]} Qf6 {[%emt 0:01:11]} 36. Rc3 {[%emt 0:02:10]} Qf5 {[%emt 0:00:44]} 37. Qe2 {[%emt 0:01:46]} Rg6 {[%emt 0:02:47]} 38. Qf3 {[%emt 0:01:42]} 1/2-1/2

[Event "NOR-ch Various 2019"]
[Site "Larvik"]
[Date "2019.07.12"]
[Round "8.3"]
[White "Haugan, Kristoffer"]
[Black "Kyrkjebo, Eirik"]
[Result "0-1"]
[ECO "A22"]
[WhiteElo "1478"]
[BlackElo "1598"]
[Annotator "NA"]
[PlyCount "84"]
[EventDate "2019.07.06"]
[EventType "swiss"]
[EventCountry "NOR"]
[SourceTitle "playchess.com"]
[Source "ChessBase"]
[SourceQuality "1"]
[TimeControl "40/5400+30:1800+30"]

1. c4 {[%emt 0:00:00]} e5 {[%emt 0:00:00]} 2. Nc3 {[%emt 0:00:00]} Nf6 {[%emt 0:00:00]} 3. g3 {[%emt 0:00:02]} Bb4 {[%emt 0:00:12]} 4. Bg2 {[%emt 0:00:28]} O-O {[%emt 0:00:12]} 5. e3 {[%emt 0:03:19]} Bxc3 {[%emt 0:01:41]} 6. bxc3 {[%emt 0:00:47]} Nc6 {[%emt 0:01:05]} 7. d3 {[%emt 0:00:49]} Re8 {[%emt 0:01:44]} 8. Ne2 {[%emt 0:00:35]} e4 {[%emt 0:02:17]} 9. d4 {[%emt 0:00:52]} d6 {[%emt 0:02:08]} 10. O-O {[%emt 0:00:31]} Bg4 {[%emt 0:02:31]} 11. h3 {[%emt 0:00:54]} Bf5 {[%emt 0:03:51]} 12. Nf4 {[%emt 0:09:16]} b6 {[%emt 0:04:07]} 13. Qa4 {[%emt 0:06:09]} Qc8 {[%emt 0:02:37]} 14. Kh2 {[%emt 0:01:57]} Na5 {[%emt 0:01:32]} 15. Rh1 {[%emt 0:04:34]} Bd7 {[%emt 0:01:24]} 16. Qb4 {[%emt 0:01:20]} c5 {[%emt 0:00:59]} 17. Qb1 {[%emt 0:02:01]} Nxc4 {[%emt 0:01:16]} 18. Bf1 {[%emt 0:00:23]} Na5 {[%emt 0:02:57]} 19. Bb5 {[%emt 0:01:00]} g5 {[%emt 0:03:15]} 20. Bxd7 {[%emt 0:00:22]} Qxd7 {[%emt 0:00:02]} 21. Ne2 {[%emt 0:01:42]} Qf5 {[%emt 0:03:39]} 22. Kg1 {[%emt 0:02:00]} Re6 {[%emt 0:08:55]} 23. Bd2 {[%emt 0:04:47]} Nc4 {[%emt 0:03:05]} 24. Qe1 {[%emt 0:01:11]} Nd5 {[%emt 0:06:06]} 25. g4 {[%emt 0:02:47]} Qf3 {[%emt 0:07:30]} 26. Ng3 {[%emt 0:00:32]} Ne7 {[%emt 0:08:08]} 27. Qd1 {[%emt 0:02:42]} Qf6 {[%emt 0:04:53]} 28. Qe2 {[%emt 0:03:32]} d5 {[%emt 0:01:08]} 29. Rf1 {[%emt 0:01:59]} Qg6 {[%emt 0:05:01]} 30. f4 {[%emt 0:01:50]} exf3 {[%emt 0:01:10]} 31. Rxf3 {[%emt 0:01:15]} Qb1+ {[%emt 0:00:38]} 32. Kg2 {[%emt 0:02:03]} Qxa2 {[%emt 0:00:14]} 33. Rf2 {[%emt 0:00:59]} Qxd2 {[%emt 0:01:02]} 34. Qf3 {[%emt 0:03:02]} Nxe3+ {[%emt 0:02:41]} 35. Kh2 {[%emt 0:02:54]} Nxg4+ {[%emt 0:01:04]} 36. hxg4 {[%emt 0:00:43]} Qf4 {[%emt 0:00:32]} 37. Kg2 {[%emt 0:02:16]} Qxf3+ {[%emt 0:02:50]} 38. Rxf3 {[%emt 0:00:29]} Kg7 {[%emt 0:01:40]} 39. Nh5+ {[%emt 0:00:38]} Kg6 {[%emt 0:00:56]} 40. Rhf1 {[%emt 0:00:29]} f5 {[%emt 0:01:39]} 41. gxf5+ {[%emt 0:31:00]} Nxf5 {[%emt 0:30:49]} 42. Rh3 {[%emt 0:01:14]} Ne3+ {[%emt 0:00:53]} 0-1

[Event "NOR-ch Various 2019"]
[Site "Larvik"]
[Date "2019.07.12"]
[Round "8.4"]
[White "Teigen, Tore"]
[Black "Simonsen, Steinar"]
[Result "1-0"]
[ECO "D45"]
[WhiteElo "1551"]
[BlackElo "1487"]
[Annotator "NA"]
[PlyCount "111"]
[EventDate "2019.07.06"]
[EventType "swiss"]
[EventCountry "NOR"]
[SourceTitle "playchess.com"]
[Source "ChessBase"]
[SourceQuality "1"]
[TimeControl "40/5400+30:1800+30"]

1. d4 {[%emt 0:00:00]} d5 {[%emt 0:00:45]} 2. c4 {[%emt 0:00:03]} c6 {[%emt 0:00:43]} 3. Nc3 {[%emt 0:00:32]} Nf6 {[%emt 0:00:23]} 4. e3 {[%emt 0:03:32]} e6 {[%emt 0:00:27]} 5. Nf3 {[%emt 0:00:27]} Bb4 {[%emt 0:00:36]} 6. Qb3 {[%emt 0:04:04]} Bxc3+ {[%emt 0:00:29]} 7. Qxc3 {[%emt 0:00:18]} Ne4 {[%emt 0:00:57]} 8. Qc2 {[%emt 0:00:35]} Qa5+ {[%emt 0:02:00]} 9. Nd2 {[%emt 0:02:24]} O-O {[%emt 0:02:09]} 10. Be2 {[%emt 0:00:00]} Nd7 {[%emt 0:03:35]} 11. O-O {[%emt 0:00:55]} Ndf6 {[%emt 0:02:30]} 12. Nf3 {[%emt 0:02:32]} Bd7 {[%emt 0:08:25]} 13. Ne5 {[%emt 0:05:07]} Rad8 {[%emt 0:04:39]} 14. a3 {[%emt 0:03:40]} Nd6 {[%emt 0:03:44]} 15. b4 {[%emt 0:05:19]} Qc7 {[%emt 0:01:42]} 16. c5 {[%emt 0:00:35]} Nc8 {[%emt 0:02:25]} 17. Bd3 {[%emt 0:02:56]} Ne7 {[%emt 0:04:00]} 18. f4 {[%emt 0:03:04]} Ne4 {[%emt 0:05:49]} 19. Bxe4 {[%emt 0:03:10]} dxe4 {[%emt 0:00:37]} 20. Qxe4 {[%emt 0:00:12]} f6 {[%emt 0:01:31]} 21. Nc4 {[%emt 0:03:13]} f5 {[%emt 0:02:17]} 22. Qd3 {[%emt 0:07:47]} Be8 {[%emt 0:05:34]} 23. Qe2 {[%emt 0:05:08]} Ng6 {[%emt 0:02:19]} 24. Bb2 {[%emt 0:02:40]} Qd7 {[%emt 0:03:50]} 25. Nd6 {[%emt 0:01:53]} b6 {[%emt 0:03:52]} 26. Rad1 {[%emt 0:00:52]} b5 {[%emt 0:00:41]} 27. e4 {[%emt 0:05:03]} fxe4 {[%emt 0:02:04]} 28. Qxe4 {[%emt 0:00:15]} Bf7 {[%emt 0:02:07]} 29. Rde1 {[%emt 0:08:02]} e5 {[%emt 0:03:08]} 30. Nxf7 {[%emt 0:03:04]} Rxf7 {[%emt 0:02:32]} 31. fxe5 {[%emt 0:00:47]} Rxf1+ {[%emt 0:01:46]} 32. Rxf1 {[%emt 0:00:20]} Qd5 {[%emt 0:01:47]} 33. Qxd5+ {[%emt 0:01:09]} Rxd5 {[%emt 0:02:25]} 34. g3 {[%emt 0:00:01]} Ne7 {[%emt 0:00:53]} 35. Rf2 {[%emt 0:03:45]} g6 {[%emt 0:00:25]} 36. Kf1 {[%emt 0:00:39]} Nf5 {[%emt 0:01:31]} 37. Rf4 {[%emt 0:04:38]} h5 {[%emt 0:01:00]} 38. Kf2 {[%emt 0:01:31]} Kf7 {[%emt 0:00:35]} 39. Kf3 {[%emt 0:01:20]} Ke6 {[%emt 0:00:35]} 40. g4 {[%emt 0:03:32]} hxg4+ {[%emt 0:01:30]} 41. Kxg4 {[%emt 0:32:24]} Rd8 {[%emt 0:30:54]} 42. Rf2 {[%emt 0:09:35]} Ne3+ {[%emt 0:03:23]} 43. Kg5 {[%emt 0:01:23]} Nd1 {[%emt 0:00:50]} 44. Rf6+ {[%emt 0:00:21]} Kd5 {[%emt 0:00:25]} 45. Ba1 {[%emt 0:01:12]} Rh8 {[%emt 0:02:45]} 46. Rd6+ {[%emt 0:00:24]} Kc4 {[%emt 0:01:19]} 47. h4 {[%emt 0:00:20]} Rh5+ {[%emt 0:01:03]} 48. Kxg6 {[%emt 0:00:17]} Rxh4 {[%emt 0:00:31]} 49. e6 {[%emt 0:00:33]} Ne3 {[%emt 0:00:57]} 50. Rxc6 {[%emt 0:02:55]} Nd5 {[%emt 0:00:54]} 51. Ra6 {[%emt 0:00:00]} Nc7 {[%emt 0:00:00]} 52. Rd6 {[%emt 0:00:00]} Rf4 {[%emt 0:00:00]} 53. e7 {[%emt 0:00:00]} Ne8 {[%emt 0:00:00]} 54. Rd8 {[%emt 0:00:00]} Rf6+ {[%emt 0:00:00]} 55. Kg5 {[%emt 0:00:00]} Re6 {[%emt 0:00:00]} 56. Rxe8 {[%emt 0:00:00]} 1-0

[Event "NOR-ch Various 2019"]
[Site "Larvik"]
[Date "2019.07.12"]
[Round "8.5"]
[White "Sorensen, Simen"]
[Black "Kvendseth, Cornelius"]
[Result "1/2-1/2"]
[ECO "D37"]
[WhiteElo "1979"]
[BlackElo "1964"]
[Annotator "NA"]
[PlyCount "35"]
[EventDate "2019.07.06"]
[EventType "swiss"]
[EventCountry "NOR"]
[SourceTitle "playchess.com"]
[Source "ChessBase"]
[SourceQuality "1"]
[TimeControl "40/5400+30:1800+30"]

1. d4 {[%emt 0:01:39]} d5 {[%emt 0:00:04]} 2. Nf3 {[%emt 0:00:15]} Nf6 {[%emt 0:01:23]} 3. c4 {[%emt 0:00:40]} e6 {[%emt 0:00:27]} 4. Nc3 {[%emt 0:00:24]} Be7 {[%emt 0:02:56]} 5. Bf4 {[%emt 0:00:30]} O-O {[%emt 0:01:25]} 6. e3 {[%emt 0:00:14]} b6 {[%emt 0:04:44]} 7. cxd5 {[%emt 0:03:27]} exd5 {[%emt 0:03:12]} 8. Qc2 {[%emt 0:13:51]} c5 {[%emt 0:05:58]} 9. Be2 {[%emt 0:01:47]} Bb7 {[%emt 0:04:20]} 10. O-O {[%emt 0:02:17]} Ne4 {[%emt 0:03:33]} 11. Rfd1 {[%emt 0:02:49]} Nxc3 {[%emt 0:08:15]} 12. bxc3 {[%emt 0:08:06]} Qc8 {[%emt 0:05:02]} 13. Rac1 {[%emt 0:21:04]} Nd7 {[%emt 0:04:20]} 14. c4 {[%emt 0:01:42]} Rd8 {[%emt 0:05:17]} 15. Ne5 {[%emt 0:06:03]} Nxe5 {[%emt 0:02:59]} 16. Bxe5 {[%emt 0:00:38]} cxd4 {[%emt 0:02:59]} 17. Bxd4 {[%emt 0:00:57]} Ba3 {[%emt 0:01:57]} 18. Bb2 {[%emt 0:01:21]} 1/2-1/2

[Event "NOR-ch Various 2019"]
[Site "Larvik"]
[Date "2019.07.12"]
[Round "8.6"]
[White "Hansen, Rune"]
[Black "Strand, Andreas"]
[Result "0-1"]
[ECO "A06"]
[WhiteElo "1958"]
[BlackElo "1884"]
[Annotator "NA"]
[PlyCount "94"]
[EventDate "2019.07.06"]
[EventType "swiss"]
[EventCountry "NOR"]
[SourceTitle "playchess.com"]
[Source "ChessBase"]
[SourceQuality "1"]
[TimeControl "40/5400+30:1800+30"]

1. b3 {[%emt 0:00:00]} d5 {[%emt 0:03:45]} 2. e3 {[%emt 0:00:07]} Nf6 {[%emt 0:03:10]} 3. Bb2 {[%emt 0:00:07]} Bg4 {[%emt 0:02:41]} 4. Nf3 {[%emt 0:04:26]} e6 {[%emt 0:03:31]} 5. h3 {[%emt 0:01:51]} Bxf3 {[%emt 0:03:53]} 6. Qxf3 {[%emt 0:00:11]} Bd6 {[%emt 0:05:26]} 7. g4 {[%emt 0:04:33]} Nbd7 {[%emt 0:06:50]} 8. c4 {[%emt 0:06:04]} c6 {[%emt 0:03:32]} 9. Nc3 {[%emt 0:14:48]} Nc5 {[%emt 0:10:15]} 10. cxd5 {[%emt 0:05:40]} exd5 {[%emt 0:01:56]} 11. Qf5 {[%emt 0:07:49]} Qe7 {[%emt 0:02:56]} 12. g5 {[%emt 0:03:54]} Nfd7 {[%emt 0:02:49]} 13. Rc1 {[%emt 0:03:18]} O-O {[%emt 0:08:20]} 14. d4 {[%emt 0:16:13]} Ne6 {[%emt 0:01:43]} 15. h4 {[%emt 0:00:23]} Nxd4 {[%emt 0:02:45]} 16. Qh3 {[%emt 0:08:15]} Ne6 {[%emt 0:00:59]} 17. Be2 {[%emt 0:01:10]} f5 {[%emt 0:04:48]} 18. O-O {[%emt 0:01:56]} Ne5 {[%emt 0:04:43]} 19. f4 {[%emt 0:05:47]} Nd7 {[%emt 0:00:23]} 20. Bd3 {[%emt 0:01:26]} g6 {[%emt 0:06:13]} 21. h5 {[%emt 0:01:12]} Ng7 {[%emt 0:03:38]} 22. hxg6 {[%emt 0:00:31]} hxg6 {[%emt 0:00:10]} 23. Rce1 {[%emt 0:01:28]} Nh5 {[%emt 0:02:49]} 24. Be2 {[%emt 0:01:57]} Rf7 {[%emt 0:01:41]} 25. Rf2 {[%emt 0:01:27]} Rh7 {[%emt 0:00:25]} 26. Rh2 {[%emt 0:00:18]} Bc5 {[%emt 0:03:53]} 27. Bd3 {[%emt 0:03:09]} Nxf4 {[%emt 0:01:40]} 28. Qxh7+ {[%emt 0:00:12]} Qxh7 {[%emt 0:00:13]} 29. Rxh7 {[%emt 0:00:03]} Kxh7 {[%emt 0:00:30]} 30. Bf1 {[%emt 0:00:57]} Re8 {[%emt 0:00:45]} 31. Kf2 {[%emt 0:00:59]} Ne5 {[%emt 0:00:51]} 32. Kg3 {[%emt 0:00:44]} Nh5+ {[%emt 0:00:07]} 33. Kg2 {[%emt 0:01:46]} Ng4 {[%emt 0:00:58]} 34. e4 {[%emt 0:00:39]} fxe4 {[%emt 0:00:27]} 35. Na4 {[%emt 0:01:11]} Bd6 {[%emt 0:00:37]} 36. Kh3 {[%emt 0:00:59]} Nf2+ {[%emt 0:00:57]} 37. Kg2 {[%emt 0:01:04]} Rf8 {[%emt 0:03:30]} 38. Be2 {[%emt 0:00:32]} Nf4+ {[%emt 0:00:24]} 39. Kxf2 {[%emt 0:00:11]} Nd3+ {[%emt 0:00:13]} 40. Ke3 {[%emt 0:00:48]} Nxe1 {[%emt 0:00:13]} 41. Bf6 {[%emt 0:30:45]} Ng2+ {[%emt 0:30:56]} 42. Kd4 {[%emt 0:00:26]} Nf4 {[%emt 0:01:19]} 43. Bg4 {[%emt 0:00:09]} Nh5 {[%emt 0:03:37]} 44. Bxh5 {[%emt 0:00:00]} gxh5 {[%emt 0:00:00]} 45. Nc3 {[%emt 0:00:00]} Kg6 {[%emt 0:00:00]} 46. Ne2 {[%emt 0:00:00]} h4 {[%emt 0:00:00]} 47. Ng1 {[%emt 0:00:00]} Re8 {[%emt 0:00:00]} 0-1

[Event "NOR-ch Various 2019"]
[Site "Larvik"]
[Date "2019.07.12"]
[Round "8.7"]
[White "Skrede, Per Arne"]
[Black "Grondahl, David A"]
[Result "0-1"]
[ECO "B33"]
[WhiteElo "1696"]
[BlackElo "1730"]
[Annotator "NA"]
[PlyCount "70"]
[EventDate "2019.07.06"]
[EventType "swiss"]
[EventCountry "NOR"]
[SourceTitle "playchess.com"]
[Source "ChessBase"]
[SourceQuality "1"]
[TimeControl "40/5400+30:1800+30"]

1. e4 {[%emt 0:00:00]} c5 {[%emt 0:11:16]} 2. Nf3 {[%emt 0:00:00]} Nc6 {[%emt 0:00:05]} 3. d4 {[%emt 0:00:00]} cxd4 {[%emt 0:00:27]} 4. Nxd4 {[%emt 0:00:05]} Nf6 {[%emt 0:00:09]} 5. Nc3 {[%emt 0:00:07]} e5 {[%emt 0:00:04]} 6. Ndb5 {[%emt 0:00:09]} d6 {[%emt 0:00:09]} 7. Bg5 {[%emt 0:00:17]} a6 {[%emt 0:00:06]} 8. Na3 {[%emt 0:00:07]} b5 {[%emt 0:00:04]} 9. Bxf6 {[%emt 0:00:38]} gxf6 {[%emt 0:00:18]} 10. Nd5 {[%emt 0:00:08]} f5 {[%emt 0:00:15]} 11. Bd3 {[%emt 0:01:14]} Be6 {[%emt 0:00:07]} 12. c3 {[%emt 0:00:43]} Bg7 {[%emt 0:03:55]} 13. O-O {[%emt 0:01:49]} O-O {[%emt 0:01:38]} 14. Qh5 {[%emt 0:12:17]} fxe4 {[%emt 0:11:39]} 15. Bxe4 {[%emt 0:00:50]} f5 {[%emt 0:00:08]} 16. Nf6+ {[%emt 0:00:53]} Rxf6 {[%emt 0:02:10]} 17. Bxc6 {[%emt 0:00:09]} Rb8 {[%emt 0:02:19]} 18. Qe2 {[%emt 0:11:02]} Rb6 {[%emt 0:09:40]} 19. Bf3 {[%emt 0:02:45]} e4 {[%emt 0:01:20]} 20. Bh5 {[%emt 0:03:44]} Rh6 {[%emt 0:00:38]} 21. g3 {[%emt 0:03:35]} Rb8 {[%emt 0:06:34]} 22. f4 {[%emt 0:07:17]} b4 {[%emt 0:02:04]} 23. Nc4 {[%emt 0:17:31]} Qc7 {[%emt 0:05:15]} 24. Ne3 {[%emt 0:03:16]} Qc5 {[%emt 0:00:50]} 25. cxb4 {[%emt 0:02:48]} Qxb4 {[%emt 0:01:01]} 26. g4 {[%emt 0:05:43]} Bd4 {[%emt 0:07:31]} 27. h3 {[%emt 0:02:23]} Bc4 {[%emt 0:00:24]} 28. Qe1 {[%emt 0:03:59]} Qc5 {[%emt 0:00:16]} 29. Qh4 {[%emt 0:02:30]} Bxe3+ {[%emt 0:00:31]} 30. Kh1 {[%emt 0:00:18]} fxg4 {[%emt 0:01:29]} 31. Qxg4+ {[%emt 0:02:03]} Kf8 {[%emt 0:00:48]} 32. Rg1 {[%emt 0:01:49]} Bxg1 {[%emt 0:00:29]} 33. Rxg1 {[%emt 0:00:11]} Qxh5 {[%emt 0:00:45]} 34. Qg7+ {[%emt 0:00:24]} Ke8 {[%emt 0:00:01]} 35. Qh8+ {[%emt 0:00:29]} Kd7 {[%emt 0:00:49]} 0-1

[Event "NOR-ch Various 2019"]
[Site "Larvik"]
[Date "2019.07.12"]
[Round "8.8"]
[White "Oldernes, Lars-Arne"]
[Black "Evjen, Kristian Thunestvedt"]
[Result "0-1"]
[ECO "E32"]
[WhiteElo "1684"]
[BlackElo "1700"]
[Annotator "NA"]
[PlyCount "70"]
[EventDate "2019.07.06"]
[EventType "swiss"]
[EventCountry "NOR"]
[SourceTitle "playchess.com"]
[Source "ChessBase"]
[SourceQuality "1"]
[TimeControl "40/5400+30:1800+30"]

1. d4 {[%emt 0:08:45]} Nf6 {[%emt 0:00:00]} 2. c4 {[%emt 0:01:02]} e6 {[%emt 0:00:00]} 3. Nc3 {[%emt 0:00:34]} Bb4 {[%emt 0:00:00]} 4. Qc2 {[%emt 0:00:18]} O-O {[%emt 0:00:00]} 5. e4 {[%emt 0:00:28]} d5 {[%emt 0:00:07]} 6. e5 {[%emt 0:02:04]} Ne4 {[%emt 0:00:06]} 7. Nf3 {[%emt 0:05:11]} c5 {[%emt 0:01:35]} 8. a3 {[%emt 0:00:49]} Bxc3+ {[%emt 0:13:33]} 9. bxc3 {[%emt 0:00:15]} Nc6 {[%emt 0:01:15]} 10. Bd3 {[%emt 0:07:43]} f5 {[%emt 0:07:51]} 11. cxd5 {[%emt 0:11:00]} exd5 {[%emt 0:01:10]} 12. O-O {[%emt 0:03:30]} Be6 {[%emt 0:02:28]} 13. dxc5 {[%emt 0:07:46]} Nxc5 {[%emt 0:02:38]} 14. Nd4 {[%emt 0:00:42]} Qd7 {[%emt 0:02:28]} 15. Nxe6 {[%emt 0:04:24]} Qxe6 {[%emt 0:01:26]} 16. f4 {[%emt 0:00:17]} Rac8 {[%emt 0:05:03]} 17. Rb1 {[%emt 0:04:17]} Kh8 {[%emt 0:02:46]} 18. Be3 {[%emt 0:03:31]} Na5 {[%emt 0:04:26]} 19. Bxc5 {[%emt 0:04:00]} Rxc5 {[%emt 0:00:15]} 20. Rb5 {[%emt 0:00:06]} Rxb5 {[%emt 0:00:17]} 21. Bxb5 {[%emt 0:00:10]} Qb6+ {[%emt 0:00:02]} 22. Qf2 {[%emt 0:00:43]} Qxb5 {[%emt 0:00:27]} 23. Qxa7 {[%emt 0:00:04]} h6 {[%emt 0:04:26]} 24. Qd4 {[%emt 0:05:50]} Nc6 {[%emt 0:01:03]} 25. Qd2 {[%emt 0:00:14]} Rd8 {[%emt 0:01:36]} 26. Qc2 {[%emt 0:00:44]} d4 {[%emt 0:03:31]} 27. cxd4 {[%emt 0:01:08]} Nxd4 {[%emt 0:00:24]} 28. Qb1 {[%emt 0:00:39]} Qd5 {[%emt 0:04:01]} 29. Qd3 {[%emt 0:04:12]} b5 {[%emt 0:04:29]} 30. Rb1 {[%emt 0:04:56]} Qc4 {[%emt 0:01:57]} 31. Qe3 {[%emt 0:07:30]} Ne2+ {[%emt 0:02:21]} 32. Kf2 {[%emt 0:01:26]} Nxf4 {[%emt 0:00:17]} 33. Rg1 {[%emt 0:06:09]} Qc2+ {[%emt 0:00:35]} 34. Kf3 {[%emt 0:00:16]} Rd3 {[%emt 0:00:08]} 35. Kxf4 {[%emt 0:00:06]} Rxe3 {[%emt 0:00:10]} 0-1

[Event "NOR-ch Various 2019"]
[Site "Larvik"]
[Date "2019.07.12"]
[Round "8.9"]
[White "Wullum, Robin"]
[Black "Carlin, Tormod"]
[Result "0-1"]
[ECO "A00"]
[WhiteElo "1452"]
[BlackElo "1426"]
[Annotator "NA"]
[PlyCount "83"]
[EventDate "2019.07.06"]
[EventType "swiss"]
[EventCountry "NOR"]
[SourceTitle "playchess.com"]
[Source "ChessBase"]
[SourceQuality "1"]
[TimeControl "40/5400+30:1800+30"]

1. Na3 {[%emt 0:00:00]} d5 {[%emt 0:00:00]} 2. c3 {[%emt 0:00:00]} Nf6 {[%emt 0:00:01]} 3. Nf3 {[%emt 0:00:00]} Bf5 {[%emt 0:00:18]} 4. d4 {[%emt 0:00:10]} e6 {[%emt 0:00:11]} 5. Nc2 {[%emt 0:00:14]} c5 {[%emt 0:00:22]} 6. Bf4 {[%emt 0:00:09]} Nc6 {[%emt 0:00:14]} 7. e3 {[%emt 0:00:36]} c4 {[%emt 0:00:25]} 8. b3 {[%emt 0:00:10]} b5 {[%emt 0:00:12]} 9. b4 {[%emt 0:01:12]} Bd6 {[%emt 0:00:09]} 10. Bg3 {[%emt 0:00:16]} O-O {[%emt 0:00:23]} 11. Be2 {[%emt 0:00:06]} Ne4 {[%emt 0:00:49]} 12. Ne5 {[%emt 0:00:47]} Bxe5 {[%emt 0:02:33]} 13. dxe5 {[%emt 0:01:04]} Nxc3 {[%emt 0:00:58]} 14. Qc1 {[%emt 0:00:59]} Nxe2 {[%emt 0:03:23]} 15. Kxe2 {[%emt 0:03:29]} Bd3+ {[%emt 0:01:03]} 16. Ke1 {[%emt 0:00:16]} Bxc2 {[%emt 0:00:12]} 17. Qxc2 {[%emt 0:00:12]} Nxb4 {[%emt 0:00:06]} 18. Qc3 {[%emt 0:00:28]} Nd3+ {[%emt 0:00:19]} 19. Ke2 {[%emt 0:00:17]} b4 {[%emt 0:00:51]} 20. Qd4 {[%emt 0:00:07]} Qc7 {[%emt 0:03:33]} 21. Rhd1 {[%emt 0:00:17]} a5 {[%emt 0:02:25]} 22. f4 {[%emt 0:00:19]} Qc5 {[%emt 0:04:49]} 23. Be1 {[%emt 0:01:30]} Qxd4 {[%emt 0:03:54]} 24. exd4 {[%emt 0:00:50]} Nxe1 {[%emt 0:02:59]} 25. Rxe1 {[%emt 0:00:03]} a4 {[%emt 0:00:09]} 26. Kd2 {[%emt 0:00:11]} b3 {[%emt 0:00:19]} 27. Kc3 {[%emt 0:00:06]} g6 {[%emt 0:01:41]} 28. g4 {[%emt 0:00:15]} Kg7 {[%emt 0:00:16]} 29. h4 {[%emt 0:00:02]} h6 {[%emt 0:02:07]} 30. f5 {[%emt 0:00:32]} gxf5 {[%emt 0:01:20]} 31. gxf5 {[%emt 0:00:03]} Rg8 {[%emt 0:00:24]} 32. Rg1+ {[%emt 0:02:31]} Kh7 {[%emt 0:00:26]} 33. fxe6 {[%emt 0:00:20]} fxe6 {[%emt 0:00:22]} 34. axb3 {[%emt 0:01:01]} axb3 {[%emt 0:00:13]} 35. Rxg8 {[%emt 0:00:34]} Rxg8 {[%emt 0:00:17]} 36. Ra6 {[%emt 0:00:12]} Re8 {[%emt 0:00:36]} 37. h5 {[%emt 0:00:09]} Re7 {[%emt 0:02:23]} 38. Ra8 {[%emt 0:00:56]} Kg7 {[%emt 0:00:16]} 39. Rb8 {[%emt 0:00:20]} Ra7 {[%emt 0:08:14]} 40. Re8 {[%emt 0:00:47]} Rb7 {[%emt 0:00:12]} 41. Kb2 {[%emt 0:30:12]} c3+ {[%emt 0:30:24]} 42. Kxc3 {[%emt 0:00:02]} 0-1

[Event "NOR-ch Various 2019"]
[Site "Larvik"]
[Date "2019.07.12"]
[Round "8.10"]
[White "Evanger, Trond"]
[Black "Hansen, Roy Drange"]
[Result "1-0"]
[ECO "D30"]
[WhiteElo "1571"]
[BlackElo "1515"]
[Annotator "NA"]
[PlyCount "75"]
[EventDate "2019.07.06"]
[EventType "swiss"]
[EventCountry "NOR"]
[SourceTitle "playchess.com"]
[Source "ChessBase"]
[SourceQuality "1"]
[TimeControl "40/5400+30:1800+30"]

1. d4 {[%emt 0:00:00]} d5 {[%emt 0:00:00]} 2. c4 {[%emt 0:00:00]} e6 {[%emt 0:00:00]} 3. Nc3 {[%emt 0:00:00]} c6 {[%emt 0:00:15]} 4. Nf3 {[%emt 0:00:10]} Be7 {[%emt 0:00:26]} 5. e4 {[%emt 0:00:52]} dxe4 {[%emt 0:00:37]} 6. Nxe4 {[%emt 0:00:02]} Nf6 {[%emt 0:00:26]} 7. Bd3 {[%emt 0:00:43]} Nbd7 {[%emt 0:00:31]} 8. O-O {[%emt 0:01:43]} O-O {[%emt 0:00:22]} 9. Qe2 {[%emt 0:00:27]} Re8 {[%emt 0:00:34]} 10. Rd1 {[%emt 0:01:17]} Qc7 {[%emt 0:03:38]} 11. Bg5 {[%emt 0:10:35]} Nxe4 {[%emt 0:04:51]} 12. Qxe4 {[%emt 0:00:59]} Nf8 {[%emt 0:00:42]} 13. Rac1 {[%emt 0:08:08]} f6 {[%emt 0:04:55]} 14. Bf4 {[%emt 0:05:37]} Qb6 {[%emt 0:09:46]} 15. b3 {[%emt 0:06:59]} c5 {[%emt 0:00:32]} 16. Be3 {[%emt 0:04:24]} a5 {[%emt 0:08:47]} 17. d5 {[%emt 0:02:25]} e5 {[%emt 0:00:48]} 18. Nh4 {[%emt 0:03:46]} g6 {[%emt 0:02:54]} 19. Bh6 {[%emt 0:04:08]} Qd6 {[%emt 0:08:00]} 20. Re1 {[%emt 0:05:58]} Bd7 {[%emt 0:03:25]} 21. g4 {[%emt 0:06:40]} f5 {[%emt 0:08:20]} 22. gxf5 {[%emt 0:02:01]} gxf5 {[%emt 0:09:13]} 23. Qg2+ {[%emt 0:01:43]} Ng6 {[%emt 0:03:45]} 24. Nxf5 {[%emt 0:00:20]} Bxf5 {[%emt 0:01:13]} 25. Bxf5 {[%emt 0:00:35]} Kh8 {[%emt 0:00:14]} 26. Be6 {[%emt 0:05:59]} Bf8 {[%emt 0:02:43]} 27. Be3 {[%emt 0:02:32]} Re7 {[%emt 0:00:49]} 28. Qe4 {[%emt 0:01:27]} Bg7 {[%emt 0:04:16]} 29. a4 {[%emt 0:06:19]} Rf8 {[%emt 0:01:24]} 30. Rc3 {[%emt 0:03:05]} Nf4 {[%emt 0:00:51]} 31. Bf5 {[%emt 0:01:40]} Rf6 {[%emt 0:05:33]} 32. Bxf4 {[%emt 0:04:55]} exf4 {[%emt 0:07:52]} 33. Qxe7 {[%emt 0:00:13]} Qxe7 {[%emt 0:02:14]} 34. Rxe7 {[%emt 0:00:29]} Rxf5 {[%emt 0:02:58]} 35. Re8+ {[%emt 0:01:20]} Bf8 {[%emt 0:00:17]} 36. d6 {[%emt 0:02:23]} Rf7 {[%emt 0:02:52]} 37. Rd3 {[%emt 0:00:13]} Kg7 {[%emt 0:00:31]} 38. d7 {[%emt 0:00:33]} 1-0